bitfinex/quotes_SOLUSD_20250222
["timestamp","ask_amount","ask_price","bid_price","bid_amount"]
[1740257898246,0.03,172.88,172.87,36.09416968]
[1740257903552,0.03,172.88,172.87,11.65992082]
[1740257904165,0.03,172.88,172.87,17.44452082]
[1740257905452,0.03,172.88,172.87,36.09416968]
[1740257906174,0.03,172.88,172.86,9.9849]
[1740257906370,0.03,172.88,172.87,11.65992082]
[1740257907762,0.03,172.88,172.87,17.44452082]
[1740257907955,0.03,172.88,172.87,36.09416968]
[1740257908873,0.03,172.88,172.87,17.44452082]
[1740257913276,0.03,172.88,172.87,36.09416968]
[1740257921180,0.03,172.88,172.87,17.44452082]
[1740257923885,0.03,172.88,172.84,84.79132197]
[1740257924066,0.03,172.88,172.86,11.65992082]
[1740257924766,0.03,172.88,172.86,17.44482082]
[1740257925167,0.03,172.88,172.86,11.65992082]
[1740257927475,0.03,172.88,172.83,11.65992082]
[1740257927476,11.68992082,172.88,172.83,11.65992082]
[1740257927674,11.68992082,172.88,172.83,17.44582082]
[1740257927988,11.68992082,172.88,172.83,5.7859]
[1740257929202,11.68992082,172.88,172.83,17.44582082]
[1740257929362,0.03,172.88,172.83,17.44582082]
[1740257934387,0.03,172.88,172.84,11.65992082]
[1740257939398,0.03,172.88,172.83,11.65992082]
[1740257940904,11.68992082,172.88,172.82,17.50922082]
[1740257941808,17.47442082,172.88,172.82,17.50922082]
[1740257943806,79.361,172.87,172.82,17.50922082]
[1740257944307,91.02092082,172.86,172.82,0.063]
[1740257945705,79.361,172.86,172.82,0.063]
[1740257947884,79.361,172.86,172.82,11.72292082]
[1740257949709,79.361,172.85,172.82,11.72292082]
[1740257950107,85.7105,172.84,172.82,0.063]
[1740257950314,79.361,172.83,172.82,0.063]
[1740257951607,85.147,172.83,172.82,0.063]
[1740257952116,79.361,172.83,172.82,0.063]
[1740257955691,23.79512082,172.84,172.82,0.063]
[1740257957517,11.65992082,172.83,172.82,0.063]
[1740257959418,17.44592082,172.83,172.82,0.063]
[1740257962609,17.47592082,172.83,172.82,0.063]
[1740257970807,37.12556968,172.83,172.82,0.0001]
[1740257971610,39.64964886,172.81,172.8,0.063]
[1740257971809,39.64964886,172.81,172.69,5.7906]
[1740257971810,1.0,172.79,172.69,5.7906]
[1740257972126,11.65992082,172.74,172.69,5.7906]
[1740257972518,11.65992082,172.74,172.69,17.45052082]
[1740257975110,11.65992082,172.75,172.69,17.45052082]
[1740257975426,11.65992082,172.75,172.69,17.51352082]
[1740257976440,92.65992082,172.74,172.69,0.063]
[1740257978426,81.0,172.74,172.69,11.72292082]
[1740257980629,81.0,172.74,172.69,17.51352082]
[1740257982433,17.44862082,172.75,172.69,17.51352082]
[1740257985526,11.65992082,172.74,172.69,17.51352082]
[1740257986433,11.65992082,172.74,172.69,5.8536]
[1740257986836,11.65992082,172.73,172.69,5.8536]
[1740257988337,92.65992082,172.73,172.69,5.8536]
[1740257994442,81.0,172.73,172.69,5.8536]
[1740257995140,81.0,172.73,172.69,0.063]
[1740257995318,92.65992082,172.73,172.69,0.063]
[1740257995519,81.0,172.73,172.69,0.063]
[1740257996037,92.65992082,172.73,172.69,0.063]
[1740257996235,11.65992082,172.71,172.69,0.063]
[1740258000462,81.0,172.71,172.69,0.063]
[1740258006340,81.0,172.72,172.7,11.65992082]
[1740258006541,81.0,172.72,172.69,11.72292082]
[1740258006847,81.0,172.72,172.69,0.063]
[1740258012948,92.65992082,172.72,172.69,0.063]
[1740258013141,11.65992082,172.71,172.69,0.063]
[1740258014966,11.65992082,172.7,172.69,0.063]
[1740258015163,92.65992082,172.7,172.69,0.063]
[1740258016343,81.0,172.7,172.69,11.72292082]
[1740258016938,81.0,172.7,172.69,17.51362082]
[1740258018136,92.65992082,172.75,172.69,17.51362082]
[1740258018442,81.0,172.74,172.7,11.65992082]
[1740258019364,81.0,172.74,172.7,17.45002082]
[1740258023068,81.0,172.74,172.71,11.65992082]
[1740258023276,81.0,172.74,172.73,11.65992082]
[1740258023570,81.0,172.78,172.73,11.65992082]
[1740258023751,81.0,172.77,172.73,11.65992082]
[1740258024359,81.0,172.77,172.73,17.44912082]
[1740258030783,81.0,172.77,172.74,11.65992082]
[1740258031668,81.0,172.77,172.73,17.44922082]
[1740258032678,81.0,172.77,172.73,5.7893]
[1740258037983,81.0,172.77,172.72,11.65992082]
[1740258038184,81.0,172.77,172.72,17.44932082]
[1740258038362,81.0,172.77,172.73,11.65992082]
[1740258038563,81.0,172.77,172.72,17.44932082]
[1740258038791,81.0,172.77,172.73,11.65992082]
[1740258039683,81.0,172.77,172.73,17.44922082]
[1740258041880,98.44792082,172.77,172.72,11.65992082]
[1740258042085,11.65992082,172.74,172.69,5.8536]
[1740258042271,11.65992082,172.73,172.69,5.8536]
[1740258042583,11.65992082,172.73,172.69,0.063]
[1740258043373,10.65992082,172.73,172.69,0.063]
[1740258046379,11.65992082,172.7,172.69,0.063]
[1740258046764,11.65992082,172.71,172.69,0.063]
[1740258048176,11.65992082,172.72,172.69,0.063]
[1740258049391,81.0,172.71,172.69,0.063]
[1740258050601,98.44992082,172.71,172.69,0.063]
[1740258050903,11.65992082,172.7,172.69,0.063]
[1740258053784,92.65992082,172.7,172.69,0.063]
[1740258053978,98.45022082,172.7,172.69,0.063]
[1740258057983,92.65992082,172.7,172.69,0.063]
[1740258058492,81.0,172.7,172.69,0.063]
[1740258059712,11.65992082,172.72,172.69,0.063]
[1740258060206,11.68992082,172.73,172.69,0.063]
[1740258060398,0.03,172.73,172.69,11.72292082]
[1740258060815,11.68992082,172.73,172.69,0.063]
[1740258061313,11.65992082,172.71,172.69,0.063]
[1740258061890,5.8195,172.73,172.69,0.063]
[1740258061891,11.65992082,172.7,172.69,0.063]
[1740258062304,17.44962082,172.72,172.69,0.063]
[1740258062613,0.03,172.73,172.69,0.063]
[1740258063719,0.03,172.73,172.69,11.72292082]
[1740258064214,0.03,172.73,172.69,17.51342082]
[1740258065616,81.03,172.73,172.69,17.51342082]
[1740258065821,92.68992082,172.73,172.69,0.063]
[1740258066125,81.03,172.73,172.69,0.063]
[1740258066326,81.03,172.73,172.69,11.72292082]
[1740258069517,81.03,172.73,172.69,17.51352082]
[1740258071198,81.03,172.73,172.72,11.65992082]
[1740258073098,81.03,172.73,172.72,17.44962082]
[1740258074528,0.03,172.73,172.72,17.44962082]
[1740258075822,0.03,172.73,172.72,36.09926968]
[1740258077716,0.03,172.73,172.72,38.96059496]
[1740258084145,0.03,172.8,172.72,120.86059496]
[1740258084346,0.03,172.8,172.77,11.65992082]
[1740258085647,0.03,172.8,172.78,11.65992082]
[1740258085810,0.03,172.8,172.79,11.65992082]
[1740258086747,0.03,172.8,172.79,17.44722082]
[1740258089643,0.03,172.8,172.79,36.09686968]
[1740258091944,0.03,172.8,172.79,24.43694886]
[1740258092118,0.03,172.8,172.79,36.09686968]
[1740258092853,0.03,172.8,172.79,11.65992082]
[1740258093030,0.03,172.8,172.79,4.16]
[1740258094855,0.03,172.8,172.79,15.81992082]
[1740258095850,0.03,172.8,172.79,11.65992082]
[1740258098474,0.03,172.8,172.79,17.44722082]
[1740258098847,0.03,172.8,172.79,36.09686968]
[1740258099048,0.03,172.8,172.79,11.65992082]
[1740258099649,0.03,172.8,172.79,30.30956968]
[1740258099861,0.03,172.8,172.79,36.09686968]
[1740258100144,0.03,172.8,172.79,11.65992082]
[1740258107164,0.03,172.8,172.78,15.81992082]
[1740258107659,0.03,172.8,172.76,11.65992082]
[1740258108064,0.03,172.8,172.75,15.81992082]
[1740258108665,0.03,172.8,172.76,11.65992082]
[1740258110176,0.03,172.8,172.75,15.81992082]
[1740258111287,0.03,172.8,172.75,11.65992082]
[1740258112382,5.7873,172.79,172.74,15.81992082]
[1740258112568,11.65992082,172.78,172.73,11.72292082]
[1740258112772,11.65992082,172.77,172.73,0.063]
[1740258112970,92.65992082,172.78,172.73,0.063]
[1740258114401,0.03,172.8,172.73,0.063]
[1740258114402,19.55112082,172.76,172.73,0.063]
[1740258114560,17.44862082,172.75,172.73,0.063]
[1740258114760,98.44862082,172.75,172.73,0.063]
[1740258115085,86.7887,172.75,172.73,0.063]
[1740258115696,81.0,172.75,172.73,0.063]
[1740258115896,81.0,172.75,172.74,11.65992082]
[1740258116061,81.0,172.79,172.74,11.65992082]
[1740258116261,81.0,172.79,172.76,11.65992082]
[1740258117659,0.03,172.8,172.78,11.65992082]
[1740258117860,0.03,172.8,172.79,11.65992082]
[1740258118863,0.03,172.8,172.77,11.65992082]
[1740258120701,0.03,172.8,172.78,11.65992082]
[1740258121497,0.03,172.8,172.79,11.65992082]
[1740258123290,0.03,172.8,172.79,17.44722082]
[1740258126787,0.03,172.8,172.79,36.09686968]
[1740258126993,0.03,172.8,172.79,82.73655296]
[1740258127496,0.0001,172.8,172.79,82.73655296]
[1740258127998,0.03,172.83,172.82,20.0]
[1740258128302,0.03,172.83,172.82,136.38956968]
[1740258128500,0.0001,172.83,172.82,136.38956968]
[1740258128798,0.03,172.88,172.83,18.64964886]
[1740258128987,0.03,172.88,172.87,11.65992082]
[1740258129179,0.03,172.88,172.87,17.44452082]
[1740258134410,0.03,172.88,172.87,36.09416968]
[1740258162332,0.7066,172.94,172.88,18.64964886]
[1740258162629,0.7066,172.94,172.91,11.65992082]
[1740258162823,0.7066,172.94,172.9,11.65992082]
[1740258164233,0.7066,172.94,172.91,11.65992082]
[1740258165231,0.7066,172.94,172.91,17.44312082]
[1740258166736,0.7066,172.94,172.91,11.65992082]
[1740258169834,6.3109,172.95,172.91,17.44322082]
[1740258170039,6.3109,172.95,172.92,11.65992082]
[1740258171823,6.3109,172.95,172.91,17.44322082]
[1740258172010,6.3109,172.95,172.91,20.32079601]
[1740258172212,6.3109,172.95,172.91,20.26455181]
[1740258172933,6.3109,172.95,172.91,14.53749601]
[1740258173238,12.0929,172.95,172.9,11.65992082]
[1740258175344,12.0929,172.95,172.9,11.72292082]
[1740258175645,12.1229,172.95,172.9,11.72292082]
[1740258176252,6.3409,172.95,172.9,11.72292082]
[1740258176551,6.3409,172.95,172.91,11.65992082]
[1740258178521,6.3409,172.95,172.91,17.44312082]
[1740258179554,6.3409,172.95,172.91,11.65992082]
[1740258183958,0.03,172.95,172.91,17.44322082]
[1740258185461,0.03,172.95,172.92,11.65992082]
[1740258186637,0.03,172.95,172.91,11.65992082]
[1740258187361,0.03,172.95,172.91,11.72292082]
[1740258190061,0.03,172.95,172.91,0.063]
[1740258191266,0.03,172.95,172.91,11.72292082]
[1740258191567,0.03,172.95,172.92,11.65992082]
[1740258192848,0.03,172.95,172.91,11.72292082]
[1740258193253,0.03,172.95,172.92,11.65992082]
[1740258193968,0.03,172.95,172.91,11.72292082]
[1740258194365,0.03,172.95,172.92,11.65992082]
[1740258194944,0.03,172.95,172.91,20.38227111]
[1740258195364,0.03,172.95,172.91,8.72235029]
[1740258195544,0.03,172.95,172.91,2.93925029]
[1740258195739,0.03,172.95,172.91,14.59917111]
[1740258197939,0.03,172.95,172.91,20.38247111]
[1740258198375,0.03,172.95,172.92,11.65992082]
[1740258198869,0.03,172.95,172.91,8.72255029]
[1740258199071,0.03,172.95,172.92,11.65992082]
[1740258199957,0.03,172.95,172.91,20.38247111]
[1740258201474,0.03,172.95,172.92,11.65992082]
[1740258201966,0.03,172.95,172.91,20.38247111]
[1740258206081,0.03,172.95,172.92,11.65992082]
[1740258210486,0.03,172.95,172.91,20.38247111]
[1740258211592,11.65992082,172.93,172.91,0.063]
[1740258211768,11.65992082,172.92,172.91,0.063]
[1740258212669,17.44292082,172.92,172.91,0.063]
[1740258219401,11.65992082,172.92,172.91,0.063]
[1740258219577,19.26462082,172.93,172.91,0.063]
[1740258220786,11.68992082,172.95,172.91,0.063]
[1740258220975,0.03,172.95,172.91,11.72292082]
[1740258221396,11.65992082,172.92,172.91,0.063]
[1740258223579,17.44292082,172.92,172.91,0.063]
[1740258223898,25.67112082,172.92,172.91,0.063]
[1740258228199,6.5657,172.92,172.91,0.063]
[1740258228502,17.47222082,172.95,172.91,0.063]
[1740258228997,81.0,172.94,172.91,0.063]
[1740258229526,86.7824,172.94,172.91,0.063]
[1740258231003,98.44232082,172.94,172.91,0.063]
[1740258231297,92.65992082,172.94,172.91,0.063]
[1740258231906,81.0,172.94,172.91,0.063]
[1740258232609,92.65992082,172.94,172.91,0.063]
[1740258232980,98.44232082,172.94,172.91,0.063]
[1740258234181,11.65992082,172.92,172.91,0.063]
[1740258234683,17.44292082,172.92,172.91,0.063]
[1740258235091,23.86522082,172.92,172.91,0.063]
[1740258243218,17.44292082,172.92,172.91,0.063]
[1740258247697,20.0,172.93,172.91,0.063]
[1740258247897,17.47232082,172.94,172.91,0.063]
[1740258248296,81.0,172.93,172.91,0.063]
[1740258250316,81.0,172.93,172.92,11.65992082]
[1740258251099,0.03,172.94,172.92,11.65992082]
[1740258251915,0.03,172.94,172.93,11.65992082]
[1740258252101,0.03,172.94,172.92,11.65992082]
[1740258253922,0.03,172.94,172.91,11.72292082]
[1740258254817,0.03,172.94,172.91,0.063]
[1740258255208,11.68992082,172.94,172.91,0.063]
[1740258255833,81.0,172.93,172.91,0.063]
[1740258257403,86.7827,172.93,172.91,0.063]
[1740258261722,81.0,172.93,172.91,0.063]
[1740258268317,86.7827,172.93,172.91,0.063]
[1740258273243,92.65992082,172.92,172.91,0.063]
[1740258273750,92.15992082,172.92,172.91,0.063]
[1740258274926,97.94292082,172.92,172.91,0.063]
[1740258276557,17.44292082,172.92,172.91,0.063]
[1740258277256,16.94292082,172.92,172.91,0.063]
[1740258296156,16.97292082,172.92,172.91,0.063]
[1740258299267,16.47292082,172.92,172.91,0.063]
[1740258303671,11.65992082,172.91,172.9,0.063]
[1740258305594,17.44322082,172.91,172.9,0.063]
[1740258306780,17.44322082,172.91,172.9,0.0001]
[1740258306986,18.44322082,172.91,172.9,0.0001]
[1740258307373,38.09286968,172.91,172.9,0.0001]
[1740258307970,42.25286968,172.91,172.9,0.0001]
[1740258308576,50.31406968,172.91,172.9,0.0001]
[1740258310173,49.31406968,172.91,172.9,0.0001]
[1740258310567,29.66442082,172.91,172.9,0.0001]
[1740258311083,30.66442082,172.91,172.9,0.0001]
[1740258311464,31.66442082,172.91,172.9,0.0001]
[1740258312477,50.31406968,172.91,172.9,0.0001]
[1740258313567,96.95375296,172.91,172.9,0.0001]
[1740258315298,22.0,172.87,172.83,0.063]
[1740258315503,11.65992082,172.84,172.83,0.063]
[1740258317004,11.65992082,172.84,172.76,11.65992082]
[1740258317005,31.90972082,172.84,172.76,11.65992082]
[1740258317199,11.65992082,172.8,172.74,15.81992082]
[1740258317374,81.0,172.79,172.74,15.81992082]
[1740258318384,5.7877,172.78,172.74,15.81992082]
[1740258319988,5.7877,172.78,172.74,11.65992082]
[1740258320502,17.44762082,172.78,172.73,1.6647]
[1740258320683,11.65992082,172.77,172.73,1.6647]
[1740258321210,81.0,172.76,172.73,1.6647]
[1740258321593,5.7887,172.75,172.73,1.6647]
[1740258322101,5.7887,172.75,172.73,0.063]
[1740258325615,86.7883,172.76,172.73,0.063]
[1740258325909,86.7883,172.76,172.74,11.65992082]
[1740258325910,81.0,172.76,172.74,11.65992082]
[1740258330423,81.0,172.76,172.75,11.65992082]
[1740258331502,81.0,172.8,172.75,11.65992082]
[1740258331703,81.0,172.8,172.77,11.65992082]
[1740258333407,86.7871,172.8,172.76,11.65992082]
[1740258333813,11.65992082,172.79,172.75,0.063]
[1740258334820,17.44762082,172.78,172.75,0.063]
[1740258336098,86.7883,172.77,172.75,0.063]
[1740258337922,81.0,172.77,172.75,0.063]
[1740258338626,81.0,172.77,172.75,11.72292082]
[1740258338794,81.0,172.8,172.76,11.65992082]
[1740258339002,81.0,172.8,172.77,11.65992082]
[1740258339392,98.44612082,172.83,172.77,11.65992082]
[1740258339599,81.0,172.83,172.82,11.65992082]
[1740258345025,0.03,172.84,172.82,11.65992082]
[1740258345322,0.03,172.84,172.83,11.65992082]
[1740258346528,0.03,172.84,172.83,17.44592082]
[1740258349434,0.03,172.84,172.83,11.65992082]
[1740258350518,0.03,172.84,172.83,17.44592082]
[1740258359140,0.03,172.84,172.83,17.50892082]
[1740258364437,81.03,172.92,172.84,18.64964886]
[1740258364655,81.03,172.92,172.89,11.65992082]
[1740258365349,81.03,172.92,172.88,11.65992082]
[1740258367339,81.03,172.92,172.89,11.65992082]
[1740258369349,81.03,172.92,172.91,11.65992082]
[1740258370547,0.03,172.92,172.91,17.44322082]
[1740258373935,0.03,172.92,172.91,11.65992082]
[1740258375043,0.03,172.92,172.9,11.65992082]
[1740258375946,0.03,172.92,172.91,11.65992082]
[1740258379156,0.03,172.92,172.91,17.44322082]
[1740258396063,0.03,172.92,172.91,36.09286968]
[1740258401848,0.03,172.94,172.92,30.30956968]
[1740258402056,0.03,172.94,172.93,11.65992082]
[1740258402680,0.03,172.94,172.93,30.30956968]
[1740258402883,0.03,172.95,172.94,30.30956968]
[1740258403066,0.03,172.95,172.94,34.44956968]
[1740258404696,0.03,172.95,172.94,40.23186968]
[1740258406862,0.03,172.95,172.94,43.12424505]
[1740258407264,0.03,172.95,172.94,125.02424505]
[1740258416786,0.03,172.98,172.94,125.02424505]
[1740258417085,0.03,172.98,172.97,11.65992082]
[1740258419664,0.03,172.98,172.97,17.44122082]
[1740258420690,0.03,172.98,172.97,11.65992082]
[1740258421892,0.03,172.98,172.97,17.44122082]
[1740258431800,0.03,172.98,172.97,47.7507905]
[1740258431977,1.5863,173.06,173.0,56.08986968]
[1740258432183,1.5863,173.06,173.0,60.22986968]
[1740258433275,0.0001,173.01,173.0,142.12986968]
[1740258433496,6.34,173.1,173.01,18.64964886]
[1740258433689,6.34,173.1,173.08,11.65992082]
[1740258434604,6.34,173.1,173.09,11.65992082]
[1740258441403,12.117,173.1,173.09,11.65992082]
[1740258441611,12.117,173.1,173.05,11.65992082]
[1740258442278,81.0,173.09,173.05,11.65992082]
[1740258442502,81.0,173.08,173.03,11.65992082]
[1740258442714,1.5012,173.06,173.02,11.65992082]
[1740258444713,5.7786,173.05,173.02,11.65992082]
[1740258446505,6.31,173.03,172.97,24.14]
[1740258446805,87.31,173.03,172.99,11.65992082]
[1740258447309,87.31,173.03,173.0,11.65992082]
[1740258447882,93.0896,173.03,173.0,11.65992082]
[1740258451916,93.0896,173.03,173.0,11.72292082]
[1740258452296,93.0896,173.03,173.0,0.063]
[1740258453816,104.74952082,173.03,173.0,0.063]
[1740258454022,94.18292082,173.02,173.0,0.063]
[1740258454209,11.65992082,173.01,173.0,0.063]
[1740258455722,11.65992082,173.01,172.95,0.063]
[1740258455902,19.30692082,172.97,172.95,0.063]
[1740258456105,92.65992082,172.96,172.95,0.063]
[1740258456425,81.0,172.96,172.95,0.063]
[1740258459116,81.0,172.96,172.95,11.72292082]
[1740258460328,81.0,173.0,172.95,11.72292082]
[1740258460511,81.0,173.0,172.97,11.65992082]
[1740258461828,81.0,173.0,172.97,17.44122082]
[1740258462038,7.647,173.01,172.98,11.65992082]
[1740258464628,7.647,173.01,172.97,11.65992082]
[1740258465147,7.647,173.01,172.96,11.65992082]
[1740258465442,7.647,173.01,172.97,11.65992082]
[1740258465608,7.647,173.01,172.98,11.65992082]
[1740258466107,7.647,173.01,172.97,17.44112082]
[1740258466305,7.647,173.01,172.97,11.65992082]
[1740258466642,13.427,173.01,172.96,11.65992082]
[1740258467513,7.647,173.01,172.97,11.65992082]
[1740258473035,7.647,173.01,172.96,17.44132082]
[1740258473731,7.647,173.01,172.96,11.65992082]
[1740258473926,13.4271,173.01,172.95,4.203]
[1740258474137,25.08702082,173.01,172.95,15.86292082]
[1740258475619,11.65992082,173.0,172.95,4.203]
[1740258476433,11.65992082,173.0,172.95,0.063]
[1740258476625,17.44032082,173.0,172.95,0.063]
[1740258477833,7.647,173.01,172.96,11.72292082]
[1740258478737,81.0,173.02,172.97,11.65992082]
[1740258478944,81.0,173.02,172.98,11.65992082]
[1740258479333,81.0,173.02,172.99,11.65992082]
[1740258480137,81.0,173.02,172.98,11.65992082]
[1740258480681,98.43962082,173.02,172.96,11.72292082]
[1740258480846,11.65992082,173.01,172.96,0.063]
[1740258482438,5.7803,173.0,172.96,0.063]
[1740258482961,11.65992082,172.98,172.96,0.063]
[1740258484343,17.44102082,172.98,172.96,0.063]
[1740258484561,5.7811,172.98,172.96,0.063]
[1740258488885,89.0897,172.99,172.96,0.063]
[1740258489581,81.0,172.99,172.96,0.063]
[1740258489754,81.0,172.99,172.96,11.72292082]
[1740258490776,98.44062082,172.99,172.96,0.063]
[1740258491674,86.7807,172.99,172.96,0.063]
[1740258492093,98.44062082,172.99,172.96,0.063]
[1740258496301,11.65992082,172.98,172.96,0.063]
[1740258496586,17.44092082,172.98,172.96,0.063]
[1740258497083,5.781,172.98,172.96,0.063]
[1740258498991,92.65992082,172.99,172.96,0.063]
[1740258499185,81.0,172.99,172.96,0.063]
[1740258499376,5.7803,173.0,172.96,0.063]
[1740258499576,11.65992082,173.01,172.96,0.063]
[1740258499759,5.78,173.01,172.96,0.063]
[1740258501482,24.0217,173.04,172.98,11.65992082]
[1740258501483,19.23362082,173.04,172.98,11.65992082]
[1740258501869,0.03,173.01,172.98,11.65992082]
[1740258502269,0.03,173.01,172.99,11.65992082]
[1740258502871,0.03,173.01,172.98,11.65992082]
[1740258504275,0.03,173.01,172.99,11.65992082]
[1740258506495,0.03,173.01,172.98,11.65992082]
[1740258507394,0.03,173.01,172.99,11.65992082]
[1740258509491,0.03,173.01,172.96,15.86292082]
[1740258509681,11.68992082,173.01,172.96,4.203]
[1740258510713,11.65992082,173.0,172.96,0.063]
[1740258510898,11.65992082,172.99,172.96,0.063]
[1740258511490,17.44052082,172.99,172.96,0.063]
[1740258514093,92.65992082,172.98,172.96,0.063]
[1740258516091,98.44092082,172.98,172.96,0.063]
[1740258516700,81.0,172.98,172.96,0.063]
[1740258517201,0.03,173.0,172.96,11.72292082]
[1740258517506,0.03,173.0,172.97,11.65992082]
[1740258517804,0.03,173.0,172.96,11.72292082]
[1740258520379,0.03,173.0,172.97,11.65992082]
[1740258522108,0.03,173.0,172.98,11.65992082]
[1740258526220,0.03,173.0,172.96,11.72292082]
[1740258530325,0.03,173.0,172.96,17.50452082]
[1740258530502,0.03,173.0,172.97,11.65992082]
[1740258531009,0.03,173.0,172.96,11.72292082]
[1740258538514,0.03,173.0,172.96,0.063]
[1740258540527,0.03,173.0,172.96,11.72292082]
[1740258540824,0.03,173.0,172.96,0.063]
[1740258542541,0.03,173.0,172.96,11.72292082]
[1740258546041,0.03,173.0,172.96,0.063]
[1740258552866,0.03,173.0,172.96,11.72292082]
[1740258557073,0.03,173.0,172.96,0.063]
[1740258563553,0.03,173.0,172.96,0.063]
[1740258570161,0.03,173.0,172.97,11.65992082]
[1740258570976,0.03,173.0,172.98,11.65992082]
[1740258573081,0.03,173.0,172.97,11.65992082]
[1740258582673,0.03,173.0,172.97,17.44122082]
[1740258583390,0.03,173.0,172.98,11.65992082]
[1740258586197,0.03,173.0,172.97,17.44122082]
[1740258590400,0.03,173.0,172.98,11.65992082]
[1740258593800,0.03,173.0,172.97,11.65992082]
[1740258595308,0.03,173.0,172.97,17.44122082]
[1740258595603,0.03,173.0,172.98,11.65992082]
[1740258596706,0.03,173.0,172.99,11.65992082]
[1740258599707,0.03,173.0,172.99,36.09016968]
[1740258600802,0.03,173.0,172.99,11.65992082]
[1740258608023,0.03,173.0,172.99,11.72292082]
[1740258609834,0.03,173.0,172.99,36.15316968]
[1740258613905,0.03,173.0,172.99,41.94416968]
[1740258614107,0.03,173.0,172.99,36.15316968]
[1740258618935,0.03,173.0,172.99,11.72292082]
[1740258619114,0.03,173.0,172.99,15.86292082]
[1740258619631,0.03,173.0,172.99,11.72292082]
[1740258628826,0.03,173.0,172.99,0.063]
[1740258629425,11.68992082,173.0,172.99,0.063]
[1740258630872,17.47022082,173.0,172.99,0.063]
[1740258632072,5.8103,173.0,172.99,0.063]
[1740258633174,81.03,173.0,172.99,0.063]
[1740258635470,86.8103,173.0,172.99,0.063]
[1740258635855,98.47022082,173.0,172.99,0.063]
[1740258638688,86.8103,173.0,172.99,0.063]
[1740258642685,98.47022082,173.0,172.99,0.063]
[1740258644973,86.8103,173.0,172.99,0.063]
[1740258652200,81.03,173.0,172.99,0.063]
[1740258661286,86.8103,173.0,172.99,0.063]
[1740258664308,98.47022082,173.0,172.99,0.063]
[1740258666408,19.03232082,173.0,172.99,0.063]
[1740258671401,17.47022082,173.0,172.99,0.063]
[1740258672716,5.8103,173.0,172.99,0.063]
[1740258673224,0.03,173.0,172.99,0.063]
[1740258679621,11.68992082,173.0,172.99,0.063]
[1740258681203,17.47022082,173.0,172.99,0.063]
[1740258682540,5.8103,173.0,172.99,0.063]
[1740258682831,0.03,173.0,172.99,0.063]
[1740258683732,81.03,173.0,172.99,0.063]
[1740258701379,81.03,173.0,172.99,11.72292082]
[1740258701380,0.03,173.0,172.99,11.72292082]
[1740258702868,0.03,173.0,172.99,30.37256968]
[1740258703058,0.03,173.0,172.99,36.15316968]
[1740258707681,0.03,173.0,172.99,39.06826892]
[1740258709489,0.03,173.0,172.99,120.96826892]
[1740258712375,0.03,173.0,172.99,121.96826892]
[1740258720982,0.03,173.0,172.99,120.96826892]
[1740258721181,0.03,173.0,172.99,125.10826892]
[1740258721395,0.03,173.0,172.99,119.32766892]
[1740258721893,0.03,173.0,172.99,100.67802006]
[1740258722804,0.03,173.0,172.99,125.10826892]
[1740258729805,0.03,173.01,173.0,19.64964886]
[1740258730018,0.0001,173.01,173.0,32.17620936]
[1740258730207,6.5514,173.1,173.01,19.64964886]
[1740258730380,6.5514,173.1,173.02,18.64964886]
[1740258730696,6.5514,173.1,173.08,11.65992082]
[1740258730900,6.5514,173.1,173.07,11.65992082]
[1740258733685,0.03,173.1,173.06,9.9182]